fUSD/lending_fUSD_20241110
["ID","MTS","AMOUNT","RATE_DAILY","PERIOD"]
[341890184,1731269461828,-500.0,0.00014994,2]
[341890185,1731269461838,-500.0,0.00014994,2]
[341890186,1731269461847,-500.0,0.00014994,2]
[341890187,1731269461856,-500.0,0.00014994,2]
[341890188,1731269461865,-500.16003788,0.00014994,2]
[341890189,1731269461876,-500.0,0.00014994,2]
[341890190,1731269461887,-500.0,0.00014994,2]
[341890191,1731269461900,-503.2630112,0.00014994,2]
[341890192,1731269461910,-232.76,0.00014994,2]
[341890193,1731269461920,-500.0,0.00014994,2]
[341890194,1731269461929,-500.0,0.00014994,2]
[341890195,1731269461939,-500.0,0.00014994,2]
[341890196,1731269461949,-500.0,0.00014994,2]
[341890197,1731269461959,-500.0,0.00014994,2]
[341890198,1731269461972,-204.58688601,0.00014994,2]
[341890199,1731269461982,-500.0,0.00014994,2]
[341890200,1731269461992,-500.0,0.00014994,2]
[341890201,1731269462002,-500.0,0.00014994,2]
[341890202,1731269462011,-500.0,0.00014994,2]
[341890203,1731269462020,-500.0,0.00014994,2]
[341890204,1731269462029,-500.0,0.00014994,2]
[341890205,1731269462039,-500.0,0.00014994,2]
[341890206,1731269462048,-500.0,0.00014994,2]
[341890207,1731269462057,-500.0,0.00014994,2]
[341890208,1731269462067,-500.0,0.00014994,2]
[341890209,1731269462076,-491.72001492,0.00014994,2]
[341890210,1731269462086,-1066.05,0.00014994,2]
[341890211,1731269462095,-1066.05,0.00014994,2]
[341890212,1731269462104,-1066.05,0.00014994,2]
[341890213,1731269462113,-1066.05,0.00014994,2]
[341890214,1731269462122,-1066.05,0.00014994,2]
[341890215,1731269462131,-1066.05,0.00014994,2]
[341890216,1731269462140,-1066.05,0.00014994,2]
[341890217,1731269462150,-1066.05,0.00014994,2]
[341890218,1731269462207,-253.85768982,0.00014994,2]
[341890219,1731269462216,-757.15,0.00014994,2]
[341890220,1731269462227,-500.0,0.00014994,2]
[341890221,1731269462239,-500.0,0.00014994,2]
[341890222,1731269462248,-757.15,0.00014994,2]
[341890223,1731269462257,-500.0,0.00014994,2]
[341890224,1731269462267,-757.15,0.00014994,2]
[341890225,1731269462276,-500.0,0.00014994,2]
[341890226,1731269462285,-500.0,0.00014994,2]
[341890227,1731269462294,-757.15,0.00014994,2]
[341890228,1731269462303,-500.0,0.00014994,2]
[341890229,1731269462313,-757.15,0.00014994,2]
[341890230,1731269462322,-500.0,0.00014994,2]
[341890231,1731269462331,-757.15,0.00014994,2]
[341890232,1731269462340,-349.27296695,0.00014994,2]
[341890233,1731269462349,-757.15,0.00014994,2]
[341890234,1731269462358,-757.15,0.00014994,2]
[341890235,1731269462367,-1331.21,0.00014994,2]
[341890236,1731269462376,-1331.21,0.00014994,2]
[341890237,1731269462385,-1331.21,0.00014994,2]
[341890238,1731269462395,-1331.21,0.00014994,2]
[341890239,1731269462404,-1331.21,0.00014994,2]
[341890240,1731269462413,-1331.21,0.00014994,2]
[341890241,1731269462422,-1331.21,0.00014994,2]
[341890242,1731269462431,-1331.21,0.00014994,2]
[341890243,1731269462440,-1679.83,0.00014994,2]
[341890244,1731269462449,-1679.83,0.00014994,2]
[341890245,1731269462459,-1679.83,0.00014994,2]
[341890246,1731269462468,-2563.41,0.00014994,2]
[341890247,1731269462479,-1679.83,0.00014994,2]
[341890248,1731269462488,-1679.83,0.00014994,2]
[341890249,1731269462497,-2563.41,0.00014994,2]
[341890250,1731269462506,-2563.41,0.00014994,2]
[341890251,1731269462515,-1679.83,0.00014994,2]
[341890252,1731269462524,-2563.41,0.00014994,2]
[341890253,1731269462534,-1679.83,0.00014994,2]
[341890254,1731269462542,-1679.83,0.00014994,2]
[341890255,1731269462552,-2563.41,0.00014994,2]
[341890256,1731269462562,-2563.41,0.00014994,2]
[341890257,1731269462570,-2563.41,0.00014994,2]
[341890258,1731269462580,-2563.41,0.00014994,2]
[341890259,1731269462589,-904.71,0.00014994,2]
[341890260,1731269462598,-904.71,0.00014994,2]
[341890261,1731269462607,-904.71,0.00014994,2]
[341890262,1731269462616,-904.71,0.00014994,2]
[341890263,1731269462624,-904.71,0.00014994,2]
[341890264,1731269462634,-904.71,0.00014994,2]
[341890265,1731269462643,-904.71,0.00014994,2]
[341890266,1731269462652,-500.0,0.00014994,2]
[341890267,1731269462661,-491.22,0.00014994,2]
[341890268,1731269462670,-500.0,0.00014994,2]
[341890269,1731269462679,-500.0,0.00014994,2]
[341890270,1731269462689,-500.0,0.00014994,2]
[341890271,1731269462698,-500.0,0.00014994,2]
[341890272,1731269462707,-438.65161066,0.00014994,2]
[341890273,1731269462716,-547.82,0.00014994,2]
[341890274,1731269462724,-547.82,0.00014994,2]
[341890275,1731269462740,-547.82,0.00014994,2]
[341890276,1731269462749,-547.82,0.00014994,2]
[341890277,1731269462760,-547.82,0.00014994,2]
[341890278,1731269462769,-547.82,0.00014994,2]
[341890279,1731269462778,-500.0,0.00014994,2]
[341890280,1731269462787,-547.82,0.00014994,2]
[341890281,1731269462797,-500.0,0.00014994,2]
[341890282,1731269462806,-500.0,0.00014994,2]
[341890283,1731269462815,-500.0,0.00014994,2]
[341890284,1731269462824,-500.0,0.00014994,2]
[341890285,1731269462833,-500.0,0.00014994,2]
[341890286,1731269462843,-500.0,0.00014994,2]
[341890287,1731269462852,-500.0,0.00014994,2]
[341890288,1731269462861,-500.0,0.00014994,2]
[341890289,1731269462870,-500.0,0.00014994,2]
[341890290,1731269462879,-500.0,0.00014994,2]
[341890291,1731269462888,-500.0,0.00014994,2]
[341890292,1731269462899,-500.0,0.00014994,2]
[341890293,1731269462916,-500.0,0.00014994,2]
[341890294,1731269462925,-500.0,0.00014994,2]
[341890295,1731269462934,-66189.96918976,0.00014995,2]
[341890296,1731269463357,-3353.94450525,0.00014995,2]
[341890297,1731269463369,-280.75704129,0.00014995,2]
[341890298,1731269463387,-357.42178166,0.00014995,2]
[341890299,1731269463398,-7983.6358008,0.00014995,2]
[341890300,1731269463409,-1380.94,0.00014995,2]
[341890301,1731269463420,-1557.65112544,0.00014995,2]
[341890302,1731269463588,-315.5,0.00014995,2]
[341890303,1731269463600,-1047.15400007,0.00014995,2]
[341890304,1731269463611,-897.45849212,0.00014995,2]
[341890305,1731269463627,-9078.50980999,0.00014995,2]
[341890306,1731269463638,-1139.22878096,0.00014995,2]
[341890307,1731269463650,-952.47687904,0.00014995,2]
[341890308,1731269463661,-1519.09318589,0.00014995,2]
[341890309,1731269463673,-5357.15579807,0.00014995,2]
[341890310,1731269463684,-428.76983732,0.00014995,2]
[341890311,1731269463695,-9250.44202103,0.00014995,2]
[341890312,1731269463772,-3504.40057729,0.00014995,2]
[341890313,1731269463786,-2807.36494716,0.00014995,2]
[341890314,1731269463797,-4588.83331553,0.00014995,2]
[341890315,1731269463808,-642.97607776,0.00014995,2]
[341890316,1731269463819,-23876.14556171,0.00014995,2]
[341890317,1731269463830,-70237.94363204,0.00014995,2]
[341890318,1731269463841,-500.0,0.00014995,2]
[341890319,1731269463853,-496.07624443,0.00014995,2]
[341890320,1731269463864,-1788.42451599,0.00014995,2]
[341890321,1731269463875,-408200.14965282,0.00014995,2]
[341890322,1731269464050,-500.0,0.00014992,2]
[341890323,1731269464060,-500.0,0.00014992,2]
[341890324,1731269464069,-2223.79,0.00014993,2]
[341890325,1731269464079,-500.0,0.00014993,2]
[341890326,1731269464088,-2223.79,0.00014993,2]
[341890327,1731269464097,-63220.67916464,0.00014995,2]
[341890328,1731269464108,-7235.21625921,0.00014995,2]
[341890329,1731269464119,-391.4647426,0.00014995,2]
[341890330,1731269464130,-319.60566001,0.00014995,2]
[341890331,1731269464140,-1265.198,0.00014995,2]
[341890332,1731269464158,-7938.12948494,0.00014995,2]
[341890333,1731269464170,-76826.3852096,0.00014995,2]
[341890334,1731269464191,-500.0,0.00014993,2]
[341890335,1731269464200,-1625.85552594,0.00014995,2]
[341890336,1731269464211,-680.05551509,0.00014995,2]
[341890337,1731269464222,-3041.35446036,0.00014995,2]
[341890338,1731269464233,-3981.16675481,0.00014995,2]
[341890339,1731269464284,-10113.0007727,0.00014995,2]
[341890340,1731269464293,-506.0,0.00014995,2]
[341890341,1731269464303,-3944.7941285,0.00014995,2]
[341890342,1731269464314,-1269.628188,0.00014995,2]
[341890343,1731269464325,-470.25616082,0.00014995,2]
[341890344,1731269464367,-1258.95782212,0.00014995,2]
[341890345,1731269464379,-1089.91904605,0.00014995,2]
[341890346,1731269464390,-3598.23146034,0.00014995,2]
[341890347,1731269464563,-200.0,0.000139,5]
[341890348,1731269464572,-500.0,0.00014993,2]
[341890349,1731269464581,-97.50039743,0.00014993,2]
[341890350,1731269464592,-402.49960257,0.00014993,2]
[341890351,1731269464602,-96.24373855,0.00014993,2]
[341890352,1731269464615,-403.75626145,0.00014993,2]
[341890353,1731269464624,-500.0,0.00014993,2]
[341890354,1731269464634,-2223.79,0.00014994,2]
[341890355,1731269464643,-2223.79,0.00014994,2]
[341890356,1731269464652,-2223.79,0.00014994,2]
[341890357,1731269464662,-2223.79,0.00014994,2]
[341890358,1731269464672,-500.0,0.00014994,2]
[341890359,1731269464682,-2223.79,0.00014994,2]
[341890360,1731269464690,-500.0,0.00014994,2]
[341890361,1731269464699,-2223.79,0.00014994,2]
[341890362,1731269464708,-500.0,0.00014994,2]
[341890363,1731269464718,-2223.79,0.00014994,2]
[341890364,1731269464729,-500.0,0.00014994,2]
[341890365,1731269464738,-20351.58663946,0.00014995,2]
[341890366,1731269464749,-1657.21148328,0.00014995,2]
[341890367,1731269464760,-1281.07754198,0.00014995,2]
[341890368,1731269464771,-699.9200838,0.00014995,2]
[341890369,1731269464782,-318.67873226,0.00014995,2]
[341890370,1731269465239,-659.77209503,0.00014995,2]
[341890371,1731269465250,-19903.474723,0.00014995,2]
[341890372,1731269465261,-7325.4227588,0.00014995,2]
[341890373,1731269465271,-2288.83966972,0.00014995,2]
[341890374,1731269465283,-3040.0,0.00014995,2]
[341890375,1731269465293,-379.71008372,0.00014995,2]
[341890376,1731269465304,-1104.89183922,0.00014995,2]
[341890377,1731269465315,-754.85459043,0.00014995,2]
[341890378,1731269465325,-1526.45862146,0.00014995,2]
[341890379,1731269465336,-778.14475716,0.00014995,2]
[341890380,1731269465354,-500.0,0.00014994,2]
[341890381,1731269465363,-4815.61357426,0.00014995,2]
[341890382,1731269465374,-6417.7600647,0.00014995,2]
[341890383,1731269470525,1368.34,0.0001065,2]
[341890384,1731269470804,1368.34,0.00012913,2]
[341890388,1731269714746,500.0,0.00014993,7]
[341890391,1731269740801,157.37,0.00011048,2]
[341890404,1731269969548,-465.37,0.00012567,2]
[341890405,1731269969580,-2747.03,0.00012567,2]
[341890406,1731269969612,-150.0,0.00012567,2]
[341890407,1731269969649,-1000.0,0.00013757,2]
[341890408,1731269969682,-475.55,0.0001379,2]
[341890409,1731269969715,-164.05,0.00013799,2]
[341890410,1731269969748,-150.0,0.00013812,2]
[341890411,1731269969781,-250.0,0.00013915,2]
[341890412,1731269969816,-500.0,0.00014,5]
[341890413,1731269969848,-150.0,0.0001401,2]
[341890414,1731269969881,-300.0,0.0001401,2]
[341890415,1731269969916,-23900.0,0.00014011,2]
[341890416,1731269969949,-195.0,0.00014011,2]
[341890417,1731269969983,-675.8753,0.000141,2]
[341890418,1731269991472,250.0,0.00013916,2]
[341890419,1731269996270,159.56,0.00013912,2]
[341890420,1731270002660,150.0,0.000141,2]
[341890421,1731270003074,150.0,0.000141,2]
[341890422,1731270036462,1247.82,0.00013916,2]
[341890423,1731270105178,-800.0,0.000141,5]
[341890424,1731270105212,-465.37,0.00014138,2]
[341890425,1731270105252,-1100.0,0.000142,5]
[341890426,1731270105287,-1400.0,0.000143,5]
[341890427,1731270105319,-303.60373574,0.00014359,2]
[341890428,1731270105353,-200.0,0.000144,5]
[341890429,1731270105386,-150.0,0.00014453,2]
[341890430,1731270105419,-453.0,0.00014454,2]
[341890431,1731270105452,-1254.0,0.00014454,2]
[341890432,1731270105487,-210.67,0.00014454,2]
[341890433,1731270105520,-1632.224,0.00014454,2]
[341890434,1731270105553,-1922.0,0.00014454,2]
[341890435,1731270105585,-1259.0,0.00014454,2]
[341890436,1731270105620,-921.0,0.00014454,2]
[341890437,1731270105652,-2910.0,0.00014454,2]
[341890438,1731270105687,-814.0,0.00014454,2]
[341890439,1731270105719,-1159.0,0.00014454,2]
[341890440,1731270105755,-240.417,0.00014454,2]
[341890441,1731270105787,-1091.0,0.00014454,2]
[341890442,1731270105821,-200.0,0.000145,5]
[341890443,1731270105855,-200.0,0.000146,5]
[341890444,1731270105887,-307.52,0.000146,2]
[341890445,1731270105920,-200.0,0.000147,5]
[341890446,1731270105952,-2471.86,0.000147,2]
[341890448,1731270140360,-426.22825879,0.00014792,2]
[341890449,1731270140395,-300.0,0.00014799,2]
[341890450,1731270140430,-2903.83378242,0.000148,2]
[341890451,1731270151683,-8280.42668184,0.000148,2]
[341890452,1731270164255,-14302.7249,0.000148,2]
[341890454,1731270188253,401.14,0.00013965,2]
[341890456,1731270214905,200.0,0.0001396,2]
[341890457,1731270319590,600.0,9e-05,2]
[341890459,1731270332249,14595.7294,0.00013956,2]
[341890460,1731270332280,2606.7606,0.00013956,2]
[341890461,1731270334474,150.38779114,0.0001,2]
[341890462,1731270336444,460.11084899,9e-05,2]
[341890463,1731270344511,250.0,0.00013956,2]
[341890464,1731270354073,200.0,0.00013956,2]
[341890465,1731270354129,15012.0,0.00015,10]
[341890466,1731270355291,750.0,6.94e-05,2]
[341890467,1731270374547,795.3,0.00013956,2]
[341890468,1731270378717,151.58820061,0.00015,15]
[341890469,1731270399012,157.1,0.00013909,2]
[341890471,1731270419868,5232.06808181,0.00015,14]
[341890472,1731270419976,58630.34075987,0.0001348,2]
[341890473,1731270430191,-236.54696475,0.0001348,2]
[341890474,1731270436159,-1706.18688481,0.0001348,2]
[341890476,1731270439101,-24770.8468049,0.0001348,2]
[341890477,1731270448112,-6377.78171548,0.0001348,2]
[341890478,1731270480081,1784.18843575,0.0001,2]
[341890489,1731270525910,157.37,0.00010054,2]
[341890497,1731270537248,927.91,0.00027,60]
[341890498,1731270545232,-2888.72930932,0.0001348,2]
[341890510,1731270597675,1231.5,0.00012021,2]
[341890544,1731270634171,4013.41179939,0.00018,15]
[341890545,1731270634836,-5417.00955669,0.0001348,2]
[341890546,1731270634897,-27316.37556288,0.0001348,2]
[341890547,1731270634907,-150.0,0.0001348,2]
[341890548,1731270634917,-150.0,0.0001348,2]
[341890549,1731270634927,-150.0,0.0001348,2]
[341890550,1731270634936,-150.0,0.0001348,2]
[341890551,1731270634945,-150.0,0.0001348,2]
[341890552,1731270634955,-150.0,0.0001348,2]
[341890553,1731270634965,-150.0,0.0001348,2]
[341890554,1731270634975,-242.26094116,0.0001348,2]
[341890555,1731270634986,-1850.79843083,0.0001369,2]
[341890556,1731270634996,-375.0,0.000137,2]
[341890557,1731270635005,-520.77,0.00013927,2]
[341890558,1731270635016,-195.0,0.00013942,2]
[341890560,1731270635026,-3724.77,0.00014016,2]
[341890562,1731270635034,-6023.59447444,0.00014247,2]
[341890563,1731270635049,-250.0,0.00014247,2]
[341890565,1731270635082,-2863.10552556,0.00014247,2]
[341890567,1731270635091,-1231.5,0.00014285,2]
[341890569,1731270635101,-5927.0,0.00014454,2]
[341890571,1731270635110,-150.0,0.00014454,2]
[341890573,1731270635119,-150.0,0.00014499,2]
[341890575,1731270635129,-10794.08237967,0.000145,3]
[341890577,1731270635139,-1010.0,0.000146,2]
[341890579,1731270635147,-2943.0,0.00014694,2]
[341890581,1731270635156,-24037.61461914,0.00014725,2]
[341890599,1731270637770,-1117.19742602,0.00014725,2]
[341890600,1731270637792,-17137.21013423,0.00014725,2]
[341890601,1731270637804,-363.97097042,0.00014787,2]
[341890602,1731270637813,-574.79,0.0001479,3]
[341890603,1731270637823,-4459.44923574,0.000148,2]
[341890604,1731270637832,-26346.2903,0.000148,2]
[341890605,1731270637842,-5000.0,0.000148,2]
[341890606,1731270637851,-5000.0,0.000148,2]
[341890607,1731270637861,-5000.0,0.000148,2]
[341890608,1731270637870,-5000.0,0.000148,2]
[341890609,1731270637880,-5000.0,0.000148,2]
[341890610,1731270637889,-5000.0,0.000148,2]
[341890611,1731270637899,-5000.0,0.000148,2]
[341890612,1731270637910,-5000.0,0.000148,2]
[341890613,1731270637920,-5000.0,0.000148,2]
[341890614,1731270637929,-5000.0,0.000148,2]
[341890615,1731270637938,-5000.0,0.000148,2]
[341890616,1731270637947,-5000.0,0.000148,2]
[341890617,1731270637957,-5000.0,0.000148,2]
[341890618,1731270637967,-5000.0,0.000148,2]
[341890619,1731270637976,-5000.0,0.000148,2]
[341890620,1731270637985,-5000.0,0.000148,2]
[341890621,1731270637999,-5000.0,0.000148,2]
[341890622,1731270638008,-5000.0,0.000148,2]
[341890623,1731270638018,-5000.0,0.000148,2]
[341890624,1731270638029,-5000.0,0.000148,2]
[341890625,1731270638038,-1461.16,0.00014882,2]
[341890626,1731270638048,-210.9696942,0.00014891,2]
[341890627,1731270638057,-300.32714378,0.00014892,2]
[341890628,1731270638067,-14810.1256,0.00014892,2]
[341890629,1731270638077,-500.0,0.00014973,2]
[341890630,1731270638087,-500.0,0.00014973,2]
[341890631,1731270638096,-1461.16,0.0001498,2]
[341890632,1731270638106,-1461.16,0.00014981,2]
[341890633,1731270638115,-1461.16,0.00014981,2]
[341890634,1731270638125,-1461.16,0.00014981,2]
[341890635,1731270638134,-175.28502877,0.00014981,2]
[341890636,1731270638144,-1358.521,0.00014984,2]
[341890637,1731270638153,-453.5152076,0.00014987,2]
[341890638,1731270638165,-500.0,0.0001499,2]
[341890639,1731270638174,-4812.91,0.0001499,2]
[341890640,1731270638183,-1279.69,0.0001499,2]
[341890641,1731270638193,-500.0,0.0001499,2]
[341890643,1731270638202,-500.0,0.0001499,2]
[341890645,1731270638212,-202.89563438,0.0001499,2]
[341890647,1731270638221,-500.0,0.0001499,2]
[341890649,1731270638231,-500.0,0.0001499,2]
[341890650,1731270638240,-500.0,0.0001499,2]
[341890651,1731270638250,-500.0,0.0001499,2]
[341890653,1731270638260,-4107.88,0.0001499,2]
[341890655,1731270638273,-500.0,0.0001499,2]
[341890657,1731270638282,-500.0,0.0001499,2]
[341890658,1731270638291,-500.0,0.0001499,2]
[341890659,1731270638301,-500.0,0.0001499,2]
[341890660,1731270638311,-659.35,0.0001499,2]
[341890662,1731270638321,-619.83,0.0001499,2]
[341890664,1731270638330,-500.0,0.0001499,2]
[341890666,1731270638341,-400.0,0.0001499,2]
[341890668,1731270638620,-3526.22,0.0001499,2]
[341890669,1731270638631,-603.86,0.0001499,2]
[341890670,1731270638640,-1520.78,0.0001499,2]
[341890671,1731270638650,-1029.25,0.0001499,2]
[341890672,1731270638661,-500.0,0.0001499,2]
[341890673,1731270638670,-5810.33,0.0001499,2]
[341890674,1731270638679,-2381.89,0.0001499,2]
[341890675,1731270638688,-1211.04,0.0001499,2]
[341890676,1731270638697,-1869.58,0.0001499,2]
[341890677,1731270638707,-500.0,0.0001499,2]
[341890678,1731270638716,-842.32,0.0001499,2]
[341890679,1731270638725,-500.0,0.0001499,2]
[341890680,1731270638734,-285.96416039,0.0001499,2]
[341890681,1731270638743,-313.26786577,0.0001499,2]
[341890682,1731270638752,-6468.86,0.0001499,2]
[341890683,1731270638762,-500.0,0.0001499,2]
[341890684,1731270638771,-2373.85,0.0001499,2]
[341890685,1731270638780,-500.0,0.0001499,2]
[341890686,1731270638789,-500.0,0.0001499,2]
[341890687,1731270638799,-500.0,0.0001499,2]
[341890688,1731270638808,-3497.85,0.0001499,2]
[341890689,1731270638817,-502.44664985,0.0001499,2]
[341890690,1731270638826,-500.0,0.0001499,2]
[341890691,1731270638835,-500.0,0.0001499,2]
[341890692,1731270638844,-500.0,0.00014991,2]
[341890693,1731270638853,-500.0,0.00014991,2]
[341890694,1731270638862,-500.0,0.00014991,2]
[341890695,1731270638870,-500.0,0.00014991,2]
[341890696,1731270638879,-823.69,0.00014991,2]
[341890697,1731270638888,-20000.0,0.00014991,2]
[341890698,1731270638897,-500.0,0.00014991,2]
[341890699,1731270638906,-500.0,0.00014991,2]
[341890700,1731270638918,-500.0,0.00014991,2]
[341890701,1731270638927,-500.0,0.00014991,2]
[341890702,1731270638936,-500.0,0.00014991,2]
[341890703,1731270638945,-500.0,0.00014991,2]
[341890704,1731270638954,-500.0,0.00014991,2]
[341890705,1731270638963,-500.0,0.00014991,2]
[341890706,1731270638972,-503.22345163,0.00014991,2]
[341890707,1731270638980,-502.22534885,0.00014991,2]
[341890708,1731270638989,-500.0,0.00014991,2]
[341890709,1731270638999,-500.0,0.00014991,2]
[341890710,1731270639008,-500.0,0.00014991,2]
[341890711,1731270639016,-500.0,0.00014991,2]
[341890712,1731270639025,-500.0,0.00014991,2]
[341890713,1731270639034,-500.0,0.00014991,2]
[341890714,1731270639043,-1012.24,0.00014991,2]
[341890715,1731270639052,-2183.85,0.00014991,2]
[341890716,1731270639061,-3426.84,0.00014991,2]
[341890717,1731270639070,-1540.09,0.00014991,2]
[341890718,1731270639079,-1019.04,0.00014991,2]
[341890719,1731270639088,-500.0,0.00014991,2]
[341890720,1731270639097,-1046.64,0.00014991,2]
[341890721,1731270639106,-535.54512365,0.00014991,2]
[341890722,1731270639115,-1761.04,0.00014991,2]
[341890723,1731270639124,-743.6,0.00014991,2]
[341890724,1731270639133,-500.0,0.00014991,2]
[341890725,1731270639142,-4036.34,0.00014991,2]
[341890726,1731270639150,-1341.6,0.00014991,2]
[341890727,1731270639161,-500.0,0.00014991,2]
[341890728,1731270639170,-500.0,0.00014991,2]
[341890729,1731270639178,-562.28,0.00014991,2]
[341890730,1731270639187,-1647.52,0.00014991,2]
[341890731,1731270639196,-534.15,0.00014991,2]
[341890732,1731270639205,-243.2,0.00014991,2]
[341890733,1731270639214,-6981.79,0.00014991,2]
[341890734,1731270639223,-6981.79,0.00014991,2]
[341890735,1731270639232,-4478.02,0.00014991,2]
[341890736,1731270639240,-500.0,0.00014991,2]
[341890737,1731270639249,-1398.73,0.00014991,2]
[341890738,1731270639260,-1223.75,0.00014991,2]
[341890739,1731270639270,-500.0,0.00014991,2]
[341890740,1731270639279,-500.0,0.00014991,2]
[341890741,1731270639288,-7090.73,0.00014991,2]
[341890742,1731270639299,-7090.73,0.00014991,2]
[341890743,1731270639308,-1281.7,0.00014991,2]
[341890744,1731270639317,-500.0,0.00014991,2]
[341890745,1731270639326,-500.0,0.00014991,2]
[341890746,1731270639336,-500.0,0.00014991,2]
[341890747,1731270639345,-500.0,0.00014991,2]
[341890748,1731270639355,-3758.96,0.00014991,2]
[341890749,1731270639364,-3758.96,0.00014991,2]
[341890750,1731270639373,-500.0,0.00014991,2]
[341890751,1731270639382,-500.0,0.00014991,2]
[341890752,1731270639392,-500.0,0.00014991,2]
[341890753,1731270639402,-4086.18,0.00014991,2]
[341890754,1731270639412,-1099.5,0.00014991,2]
[341890755,1731270639421,-1303.49999975,0.00014991,2]
[341890756,1731270639431,-7504.89,0.00014991,2]
[341890757,1731270639440,-7504.89,0.00014991,2]
[341890758,1731270639450,-4743.97,0.00014991,2]
[341890759,1731270639460,-654.77,0.00014991,2]
[341890760,1731270639470,-1153.26,0.00014991,2]
[341890761,1731270639480,-1153.26,0.00014991,2]
[341890762,1731270639490,-500.0,0.00014991,2]
[341890763,1731270639499,-1645.73,0.00014991,2]
[341890764,1731270639509,-500.0,0.00014991,2]
[341890765,1731270639519,-500.0,0.00014991,2]
[341890766,1731270639528,-1007.61,0.00014991,2]
[341890769,1731270639537,-605.06,0.00014991,2]
[341890771,1731270639547,-5039.32,0.00014991,2]
[341890772,1731270639556,-500.0,0.00014991,2]
[341890773,1731270639566,-500.0,0.00014991,2]
[341890774,1731270639577,-288.83,0.00014991,2]
[341890775,1731270639587,-4812.91,0.00014991,2]
[341890778,1731270639596,-6578.38,0.00014991,2]
[341890779,1731270639606,-4812.91,0.00014991,2]
[341890780,1731270639616,-6578.38,0.00014991,2]
[341890781,1731270639627,-4812.91,0.00014991,2]
[341890782,1731270639639,-500.0,0.00014991,2]
[341890783,1731270639649,-3365.58,0.00014991,2]
[341890784,1731270639659,-501.78500858,0.00014991,2]
[341890785,1731270639670,-1279.69,0.00014991,2]
[341890786,1731270639679,-1279.69,0.00014991,2]
[341890787,1731270639688,-1279.69,0.00014991,2]
[341890788,1731270639697,-3996.71,0.00014991,2]
[341890789,1731270639707,-1279.69,0.00014991,2]
[341890790,1731270639716,-4107.88,0.00014991,2]
[341890791,1731270639725,-4107.88,0.00014991,2]
[341890792,1731270639735,-4107.88,0.00014991,2]
[341890793,1731270639744,-500.0,0.00014991,2]
[341890794,1731270639753,-500.0,0.00014991,2]
[341890795,1731270639762,-4377.56,0.00014991,2]
[341890796,1731270639771,-4377.56,0.00014991,2]
[341890797,1731270639780,-659.35,0.00014991,2]
[341890798,1731270639789,-659.35,0.00014991,2]
[341890799,1731270639797,-659.35,0.00014991,2]
[341890800,1731270639807,-619.83,0.00014991,2]
[341890801,1731270639816,-619.83,0.00014991,2]
[341890802,1731270639825,-619.83,0.00014991,2]
[341890803,1731270639834,-619.83,0.00014991,2]
[341890804,1731270639843,-500.0,0.00014991,2]
[341890805,1731270639852,-3466.72,0.00014991,2]
[341890806,1731270639861,-3466.72,0.00014991,2]
[341890807,1731270639870,-3526.22,0.00014991,2]
[341890808,1731270639880,-3526.22,0.00014991,2]
[341890809,1731270639890,-3526.22,0.00014991,2]
[341890810,1731270639900,-603.86,0.00014991,2]
[341890811,1731270639910,-603.86,0.00014991,2]